[Event "87th Tata Steel Masters 2025"]
[White "Caruana,Fabiano"]
[Black "Praggnanandhaa,Rameshbabu"]
[Site "Wijk aan Zee"]
[Round "11.5"]
[Annotator "TA"]
[Result "0-1"]
[Date "2025.01.31"]
[WhiteElo "2803"]
[BlackElo "2741"]
[PlyCount "74"]
[TimeControl "60"]

{[%evp 13,74,15,17,18,18,18,11,17,3,0,10,0,52,0,28,-8,0,0,0,-6,0,-12,54,63,92,64,60,53,62,54,54,56,47,37,41,52,57,57,65,28,52,29,52,25,42,0,0,0,0,0,0,-198,-197,-190,-188,-2817,-2236,-6187,-5721,-29972,-29972,-5389,-1393]} 1. c4 {[%emt 0:0:5]} e6 {[%emt 0:1:9]} 2. Nc3 {[%emt 0:0:21]} d5 {[%emt 0:0:21]} 3. d4 {[%emt 0:0:5]} Nf6 {[%emt 0:0:8]} 4. cxd5 {[%emt 0:0:16]} exd5 {[%emt 0:0:7]} 5. Bg5 {[%emt 0:0:5]} c6 {[%emt 0:0:13]} 6. e3 {[%emt 0:1:7]} Bd6 {[%emt 0:0:13]} 7. Bd3 {[%emt 0:0:42]} O-O {[%emt 0:11:2]} 8. Nge2 {[%emt 0:2:2] D35: Queen's Gambit Declined: Exchange Variation.} Re8 {[%emt 0:0:0]} 9. h3 {[%emt 0:3:59]} Nbd7 {[%emt 0:8:3]} 10. Qc2 {[%emt 0:2:42][%cal Yd3h7] The position is equal.} Nf8 {[%emt 0:2:19]} 11. O-O-O {[%emt 0:19:20]} b5 $5 $146 {[%emt 0:10:31][%mdl 8] An interesting novelty.} (11... a5 12. g4 b5 13. Bf4 a4 14. Kb1 Ba6 15. Bxd6 Qxd6 16. Ng3 N6d7 17. Nf5 Qb8 {1-0 Grebnev,A (2486)-Popov,I (2627) Moscow Dvoretsky Memorial 2022 (3.3)} )12. Kb1 {[%emt 0:14:5]} a5 {[%emt 0:10:8]} (12... Be7 $11 )13. f3 {[%emt 0:4:48]} (13. e4 $14 )Be7 {[%emt 0:16:10]} 14. Bxf6 {[%emt 0:15:50]} Bxf6 {[%emt 0:0:0]} 15. e4 {[%emt 0:0:2]} a4 {[%emt 0:0:0]} 16. a3 {[%emt 0:8:25] [#]} b4 $1 {[%emt 0:2:59]} 17. axb4 {[%emt 0:0:0]} a3 {[%emt 0:1:19]} (17... Be6 $11 )18. b3 $14 {[%emt 0:17:38]} Qb6 {[%emt 0:10:22]} 19. Ka2 {[%emt 0:11:23]} dxe4 {[%emt 0:4:44]} (19... Bxd4 $6 20. Nxd4 (20. exd5 c5 $14 )Qxd4 21. b5 $16 )(19... Qxb4 20. exd5 Bb7 (20... Bxd4 $2 21. Nxd4 c5 22. Nc6 $18 )21. Ne4 cxd5 22. Nxf6+ gxf6 23. Qc5 $16 )20. fxe4 {[%emt 0:4:20]} Bxd4 {[%emt 0:13:14]} 21. Nxd4 {[%emt 0:0:0]} Qxd4 {[%emt 0:0:22]} 22. b5 {[%emt 0:0:0]} (22. Bc4 Qb6 $11 )Bd7 {[%emt 0:4:38][%cal Yc8d7,Yd7c6,Yc6e8,Ye8a4][%mdl 32]} 23. Bc4 {[%emt 0:1:35]} Qa7 {[%emt 0:3:27]} 24. bxc6 {[%emt 0:0:0]} (24. Rhf1 Be6 $11 (24... Re7 25. Qf2 $14 ))Bxc6 {[%emt 0:0:0]} 25. Rhf1 {[%emt 0:0:0]} Re7 {[%emt 0:0:0]} 26. Nd5 {[%emt 0:0:0]} Rb7 {[%emt 0:1:34]} 27. Rf5 {[%emt 0:5:5]} Rc8 {[%emt 0:0:59][%cal Yc6a4]} 28. Qd3 {[%emt 0:0:0] Strongly threatening Ba6.} Ne6 {[%emt 0:3:36]} 29. Rdf1 {[%emt 0:0:0]} Be8 {[%emt 0:0:8]} 30. R5f2 {[%emt 0:0:0]} Qb8 {[%emt 0:1:40]} 31. Rc2 {[%emt 0:0:17][%cal Yf1f2]} Nc5 {[%emt 0:2:4]} 32. Qe3 {[%emt 0:0:45] [#]} (32. Qe2 $11 {and White is okay.} )Nxb3 $1 $19 {[%emt 0:1:29][%mdl 512]} 33. Rb1 {[%emt 0:0:10] [#]} (33. Bxb3 $2 {is the wrong capture.} Rxc2+ 34. Bxc2 Rb2+ 35. Kxa3 Rxc2 $19 )Ba4 {[%emt 0:1:30]} 34. Bd3 $2 {[%emt 0:1:22] [#]} (34. Qf2 Na5 35. Ne7+ Kh8 36. Rxb7 Qxb7 37. Nxc8 Bxc2 (37... Qxc8 38. Rc3 $17 )(37... Nxc4 38. Qc5 $18 )38. Qxc2 Nxc4 (38... Qxc8 39. Bb3 $15 )39. Ne7 )Nc5 $1 {[%emt 0:1:34][%mdl 512]} 35. Ne7+ {[%emt 0:0:59]} (35. Rxb7 Qxb7 )Kh8 {[%emt 0:0:15]} 36. Rxb7 {[%emt 0:0:25]} Qxb7 {[%emt 0:0:8]} 37. Ba6 {[%emt 0:0:20]} Qxe7 {[%emt 0:0:24] Weighted Error Value: White=0.65/Black=0.09 (flawless)   Loses game:     	White=1     	---        Mistake:       	White=2     	Black=2      Inaccurate:     	White=6     	Black=2      OK:         	White=10    	Black=11     Best:        	White=2     	---        Brilliant:      	---       	Black=2} (37... Bb3+ $142 38. Ka1 Qxa6 (38... Qxe7 $2 39. Rc3 $19 ))0-1

[Event "87th Tata Steel Masters 2025"]
[White "Sarana,Alexey"]
[Black "Harikrishna,Pentala"]
[Site "Wijk aan Zee"]
[Round "11.6"]
[Annotator "ChessBase"]
[Result "0-1"]
[Date "2025.01.31"]
[WhiteElo "2677"]
[BlackElo "2695"]
[PlyCount "80"]
[TimeControl "60"]

1. d4 {[%emt 0:0:1]} Nf6 {[%emt 0:0:7]} 2. c4 {[%emt 0:0:7]} e6 {[%emt 0:0:6]} 3. Nf3 {[%emt 0:0:3]} d5 {[%emt 0:0:7]} 4. Nc3 {[%emt 0:0:4]} h6 {[%emt 0:0:8]} 5. e3 {[%emt 0:1:4]} a6 {[%emt 0:0:50]} 6. b3 {[%emt 0:7:17]} c5 {[%emt 0:0:25]} 7. cxd5 {[%emt 0:7:37]} cxd4 {[%emt 0:8:1]} 8. Nxd4 {[%emt 0:0:24]} Nxd5 {[%emt 0:0:40]} 9. Bd2 {[%emt 0:0:55]} Nf6 {[%emt 0:8:51]} 10. Qc2 {[%emt 0:8:16]} Bd7 {[%emt 0:7:50]} 11. Be2 {[%emt 0:7:52]} Nc6 {[%emt 0:1:10]} 12. Nf3 {[%emt 0:0:4]} Rc8 {[%emt 0:5:20]} 13. O-O {[%emt 0:1:24]} Be7 {[%emt 0:4:28]} 14. Rfd1 {[%emt 0:8:7]} O-O {[%emt 0:1:18]} 15. a3 {[%emt 0:3:36]} Bd6 {[%emt 0:9:1]} 16. b4 {[%emt 0:7:37]} Qe7 {[%emt 0:5:28]} 17. Be1 {[%emt 0:6:13]} Rfd8 {[%emt 0:6:28]} 18. Qb1 {[%emt 0:7:29]} Ne5 {[%emt 0:1:34]} 19. Qb3 {[%emt 0:1:6]} b5 {[%emt 0:3:54]} 20. h3 {[%emt 0:3:55]} Nc4 {[%emt 0:9:16]} 21. Rac1 {[%emt 0:6:51]} e5 {[%emt 0:3:55]} 22. e4 {[%emt 0:5:37]} Be6 {[%emt 0:9:11]} 23. Nd5 {[%emt 0:0:4]} Nxd5 {[%emt 0:1:58]} 24. exd5 {[%emt 0:0:3]} Bd7 {[%emt 0:0:32]} 25. Bxc4 {[%emt 0:7:0]} bxc4 {[%emt 0:0:31]} 26. Rxc4 {[%emt 0:0:23]} Ba4 {[%emt 0:1:27]} 27. Qxa4 {[%emt 0:0:2]} Rxc4 {[%emt 0:0:10]} 28. Qxa6 {[%emt 0:0:2]} Qc7 {[%emt 0:5:7]} 29. b5 {[%emt 0:0:6]} Qc8 {[%emt 0:0:50]} 30. Qa5 {[%emt 0:2:35]} Qa8 {[%emt 0:0:25]} 31. b6 {[%emt 0:9:39]} Qxa5 {[%emt 0:4:37]} 32. Bxa5 {[%emt 0:0:2]} Ra8 {[%emt 0:3:58]} 33. Bb4 {[%emt 0:9:2]} Bxb4 {[%emt 0:0:45]} 34. b7 {[%emt 0:1:16]} Re8 {[%emt 0:0:28]} 35. d6 {[%emt 0:0:34]} Bxd6 {[%emt 0:3:58]} 36. Rxd6 {[%emt 0:0:2]} f6 {[%emt 0:4:19]} 37. Rd7 {[%emt 0:1:12]} Rb8 {[%emt 0:0:5]} 38. Nd2 {[%emt 0:1:18]} Rd4 {[%emt 0:0:7]} 39. Rxd4 {[%emt 0:0:4]} exd4 {[%emt 0:0:4]} 40. Nb3 {[%emt 0:0:4]} d3 {[%emt 0:0:28]} 0-1

[Event "87th Tata Steel Masters 2025"]
[White "Van Foreest,Jorden"]
[Black "Erigaisi,Arjun Kumar"]
[Site "Wijk aan Zee"]
[Round "11.7"]
[Annotator "TA"]
[Result "1/2-1/2"]
[Date "2025.01.31"]
[WhiteElo "2680"]
[BlackElo "2801"]
[PlyCount "63"]
[TimeControl "60"]

{[%evp 9,63,-2,0,-26,-16,-17,-13,-20,-18,-17,13,14,0,0,0,0,0,6,0,0,5,0,10,0,0,0,0,0,0,0,0,0,0,0,0,0,0,0,0,0,0,0,0,0,0,0,5,0,0,0,0,0,0,0,0,0]} 1. d4 {[%emt 0:0:5]} Nf6 {[%emt 0:0:21]} 2. c4 {[%emt 0:0:13]} e6 {[%emt 0:0:5]} 3. Nc3 {[%emt 0:0:7]} Bb4 {[%emt 0:1:20]} 4. a3 {[%emt 0:0:6]} Bxc3+ {[%emt 0:0:6]} 5. bxc3 {[%emt 0:0:5]} Nc6 {[%emt 0:2:6]} 6. f3 {[%emt 0:0:33] E24: Nimzo-Indian: Sämisch: Unusual Black 5th moves and 5...c5 sidelines.} b6 {[%emt 0:0:26]} 7. e4 {[%emt 0:0:19] The position is equal.} Na5 {[%emt 0:0:15]} 8. c5 {[%emt 0:0:47]} bxc5 {[%emt 0:0:35]} 9. Qa4 {[%emt 0:0:34]} Nc6 {[%emt 0:1:56]} 10. Bb5 {[%emt 0:1:7]} cxd4 $146 {[%emt 0:0:46]} (10... Ne7 11. dxc5 O-O 12. Be3 d5 13. e5 Nd7 14. f4 a5 15. Nf3 Nb8 16. Qc2 h6 {1-0 Vuelban,V (2237)-Bellahcene,B (2521) Kuwait op 1st 2025 (5)} )11. Bxc6 {[%emt 0:0:59]} dxc6 {[%emt 0:0:6]} 12. cxd4 {[%emt 0:0:8]} Qd7 {[%emt 0:2:1][%cal Yc6c5]} 13. Ne2 {[%emt 0:0:46]} c5 {[%emt 0:11:16]} 14. Qc4 {[%emt 0:0:16] White sacrificed a pawn} cxd4 {[%emt 0:0:37]} 15. Nxd4 {[%emt 0:0:22]} Ba6 {[%emt 0:16:42]} 16. Qxa6 {[%emt 0:0:54]} (16. Qc5 {simplifies} Qd6 17. Qc6+ Qxc6 18. Nxc6 Bb5 19. Na5 )Qxd4 {[%emt 0:0:5]} 17. Qc6+ {[%emt 0:0:6] A sharp opening} Ke7 {[%emt 0:0:7]} 18. Qxc7+ {[%emt 0:0:8]} Nd7 {[%emt 0:2:8]} 19. Bg5+ {[%emt 0:0:44]} f6 {[%emt 0:0:6]} 20. Rd1 {[%emt 0:0:6]} Rhc8 {[%emt 0:4:26]} 21. Qg3 {[%emt 0:4:9] Really sharp!} Qb6 {[%emt 0:0:32]} 22. Bf4 {[%emt 0:0:6]} g6 {[%emt 0:9:20]} 23. Qf2 {[%emt 0:7:30] Prevents Rc2} (23. Qh4 {keeps more tension.} h5 24. Qf2 Ke8 25. O-O )Qxf2+ {[%emt 0:2:9]} 24. Kxf2 {[%emt 0:0:5]} e5 {[%emt 0:0:16]} 25. Be3 {[%emt 0:2:49]} Rc2+ {[%emt 0:0:17]} 26. Rd2 {[%emt 0:0:6]} Rac8 {[%emt 0:0:20]} 27. Rhd1 {[%emt 0:2:53]} Nb6 {[%emt 0:5:38]} 28. Bxb6 {[%emt 0:3:6]} axb6 {[%emt 0:0:10]} 29. Ke2 {[%emt 0:0:3]} R8c3 {[%emt 0:0:20]} 30. a4 {[%emt 0:0:34]} Rxd2+ {[%emt 0:0:9]} 31. Rxd2 {[%emt 0:0:4]} Ra3 {[%emt 0:0:7]} 32. Rb2 {[%emt 0:0:3] An interesting draw.   Weighted Error Value: White=0.02 (flawless) /Black=0.02 (flawless)   Inaccurate:     	---       	Black=1      OK:         	White=15    	Black=15     Best:        	White=2     	Black=2} 1/2-1/2

[Event "87th Tata Steel Masters 2025"]
[White "Harikrishna,Pentala"]
[Black "Keymer,Vincent"]
[Site "Wijk aan Zee"]
[Round "12.1"]
[Annotator "TA"]
[Result "1/2-1/2"]
[Date "2025.02.01"]
[WhiteElo "2695"]
[BlackElo "2733"]
[PlyCount "64"]
[TimeControl "60"]

{[%evp 9,64,-1,5,6,27,22,24,16,28,6,11,21,40,35,29,0,26,13,30,14,33,25,25,22,22,20,24,25,41,36,35,37,36,33,35,36,48,5,23,19,33,2,26,0,0,0,30,14,31,18,26,0,5,0,0,0,12]} 1. d4 {[%emt 0:0:9]} Nf6 {[%emt 0:0:5]} 2. c4 {[%emt 0:0:5]} e6 {[%emt 0:0:3]} 3. g3 {[%emt 0:0:7]} Bb4+ {[%emt 0:0:40]} 4. Nd2 {[%emt 0:0:7]} O-O {[%emt 0:4:20]} 5. Bg2 {[%emt 0:1:52]} a5 {[%emt 0:6:59][%cal Ya7a5,Ya5a4][%mdl 32]} 6. Ngf3 {[%emt 0:4:20] E00: Catalan Bogo-Indian (3 g3 Bb4+).} d6 {[%emt 0:0:46] 6...d5 gains popularity.} 7. O-O {[%emt 0:3:4]} a4 {[%emt 0:2:4]} 8. Qc2 {[%emt 0:11:0] White has an edge.} Nc6 {[%emt 0:3:26]} 9. Ne4 $146 {[%emt 0:6:12]} (9. a3 Bxd2 10. Bxd2 Bd7 11. Rad1 Qe7 12. Bc3 Na5 13. Nd2 Rfe8 14. f4 d5 15. Bb4 {½-½ Stefansson,V (2484)-Subelj,J (2492) Wch U20 60th 2023 (11)} )Nxe4 {[%emt 0:6:47]} 10. Qxe4 {[%emt 0:0:8]} Qe7 {[%emt 0:10:58]} 11. a3 {[%emt 0:15:56]} Ba5 {[%emt 0:0:4]} 12. Qc2 {[%emt 0:3:45]} Bd7 {[%emt 0:10:36]} 13. d5 {[%emt 0:9:43]} exd5 {[%emt 0:0:50]} 14. cxd5 {[%emt 0:0:13][%cal Yf3g5] [#] aiming for Ng5!.} Ne5 {[%emt 0:0:4]} 15. Bd2 {[%emt 0:3:19]} Nxf3+ {[%emt 0:2:51]} 16. Bxf3 {[%emt 0:0:17]} Rfc8 {[%emt 0:7:13]} 17. Rac1 {[%emt 0:2:29]} Ra6 {[%emt 0:4:0]} 18. Rfd1 {[%emt 0:1:24]} Qf6 {[%emt 0:5:5]} 19. Bc3 {[%emt 0:2:41]} Bxc3 {[%emt 0:0:6]} 20. Qxc3 {[%emt 0:0:20]} Qxc3 {[%emt 0:6:18]} 21. Rxc3 {[%emt 0:0:21]} Rb6 {[%emt 0:0:46]} 22. Rd2 {[%emt 0:0:41]} Kf8 {[%emt 0:0:9]} 23. e4 {[%emt 0:5:12]} Ke7 {[%emt 0:2:44]} 24. Bd1 {[%emt 0:3:56]} Ra6 {[%emt 0:5:42]} 25. h3 {[%emt 0:1:30]} f6 {[%emt 0:2:16]} 26. Rd4 {[%emt 0:7:22]} Rb6 {[%emt 0:0:41]} 27. Rd2 {[%emt 0:0:26]} Kd8 {[%emt 0:1:48]} 28. Kg2 {[%emt 0:2:50]} Ra8 {[%emt 0:0:18]} 29. Be2 {[%emt 0:3:59]} Ra5 {[%emt 0:1:20]} 30. f4 {[%emt 0:0:34]} Bb5 {[%emt 0:1:3] The position is equal.} 31. Bg4 {[%emt 0:1:3]} Be8 {[%emt 0:1:44]} 32. Be2 {[%emt 0:0:34]} Bb5 {[%emt 0:2:46] Weighted Error Value: White=0.09 (flawless) /Black=0.09 (flawless)   Inaccurate:     	White=4     	Black=2      OK:         	White=8     	Black=11} 1/2-1/2

[Event "87th Tata Steel Masters 2025"]
[White "Wei,Yi"]
[Black "Giri,Anish"]
[Site "Wijk aan Zee"]
[Round "12.2"]
[Annotator "TA"]
[Result "1/2-1/2"]
[Date "2025.02.01"]
[WhiteElo "2751"]
[BlackElo "2731"]
[PlyCount "75"]
[TimeControl "60"]

{[%evp 15,75,13,33,9,0,0,9,0,2,0,0,0,0,0,3,-5,-4,-3,-12,-8,-4,-8,-11,-11,-11,-11,-11,-10,0,0,0,0,0,0,0,0,0,0,0,0,0,0,0,0,0,0,0,0,0,0,0,-8,-8,-8,-8,-10,-10,-10,-10,-10,-10,-10]} 1. e4 {[%emt 0:0:7]} e5 {[%emt 0:0:4]} 2. Nf3 {[%emt 0:0:7]} Nf6 {[%emt 0:0:4][%cal Yg8f6,Yf6e4,Ye4c3][%mdl 32]} 3. Nxe5 {[%emt 0:5:45]} d6 {[%emt 0:0:5]} 4. Nf3 {[%emt 0:0:4]} Nxe4 {[%emt 0:0:5]} 5. d4 {[%emt 0:4:20]} d5 {[%emt 0:0:5]} 6. Bd3 {[%emt 0:0:4]} Bd6 {[%emt 0:0:6]} 7. O-O {[%emt 0:0:8]} O-O {[%emt 0:0:3]} 8. Re1 {[%emt 0:8:18]} Bf5 {[%emt 0:0:56]} 9. Nc3 {[%emt 0:0:17] C42: Petroff Defence: 3 Nxe5 and unusual White 3rd moves.} Nxc3 $1 {[%emt 0:1:19] The position is equal.} 10. bxc3 {[%emt 0:1:13][%cal Yb2c3,Yc3c4,Yc4d5][%mdl 32] A sharp opening} Bxd3 {[%emt 0:0:2]} 11. cxd3 {[%emt 0:0:28]} Nc6 $146 {[%emt 0:5:43]} (11... c6 12. Qb3 b6 13. Bg5 Qc7 14. Re2 Nd7 15. Rae1 f6 16. Bh4 b5 17. Bg3 Bxg3 18. hxg3 {½-½ Yu,Y (2720)-Deac,B (2690) Chessable Masters Play In rapid 2024 (5)} )12. c4 {[%emt 0:9:12]} Bb4 {[%emt 0:8:59]} 13. Bd2 {[%emt 0:10:38]} Bxd2 {[%emt 0:0:26]} 14. Qxd2 {[%emt 0:0:5]} Qf6 {[%emt 0:1:7]} 15. cxd5 {[%emt 0:3:30]} Nxd4 {[%emt 0:1:15]} 16. Nxd4 {[%emt 0:0:3]} Qxd4 {[%emt 0:0:5]} 17. Rac1 {[%emt 0:2:40]} Rac8 {[%emt 0:6:17]} 18. Re7 {[%emt 0:0:0]} Qxd5 {[%emt 0:0:19]} 19. Rcxc7 {[%emt 0:0:0]} Rxc7 {[%emt 0:0:4]} 20. Rxc7 $11 {[%emt 0:2:34][%mdl 4096] Endgame KQR-KQR} h6 {[%emt 0:2:47]} 21. h3 {[%emt 0:0:0]} Rd8 {[%emt 0:0:3]} 22. Qe3 {[%emt 0:0:0]} Qxd3 {[%emt 0:1:34]} 23. Rxb7 {[%emt 0:0:0]} Qxe3 {[%emt 0:0:7]} 24. fxe3 {[%emt 0:0:0] KR-KR} Rd1+ {[%emt 0:0:3]} 25. Kh2 {[%emt 0:0:0]} Rd3 {[%emt 0:0:6]} 26. Rxa7 {[%emt 0:0:0]} Rxe3 {[%emt 0:0:2]} 27. Ra8+ {[%emt 0:0:0]} Kh7 {[%emt 0:0:2]} 28. Ra7 {[%emt 0:0:0]} f5 {[%emt 0:0:8]} 29. Ra6 {[%emt 0:0:0]} f4 {[%emt 0:0:12]} 30. Ra4 {[%emt 0:0:0]} g5 {[%emt 0:0:47]} 31. Ra7+ {[%emt 0:0:0]} Kg6 {[%emt 0:0:2]} 32. Ra6+ {[%emt 0:0:0]} Kh5 {[%emt 0:0:43]} 33. a4 {[%emt 0:0:0]} Re2 {[%emt 0:0:28]} 34. Rf6 {[%emt 0:0:3]} Ra2 {[%emt 0:0:7]} 35. a5 {[%emt 0:0:4]} Rxa5 {[%emt 0:0:4]} 36. g4+ {[%emt 0:0:4]} fxg3+ {[%emt 0:0:4]} 37. Kxg3 {[%emt 0:0:4]} Ra3+ {[%emt 0:0:4]} 38. Kg2 {[%emt 0:0:4] Not much happened in this game.   Weighted Error Value: White=0.02 (flawless) /Black=0.02 (flawless)   OK:         	White=10    	Black=17     Best:        	White=3     	Black=2      Strong:       	---       	Black=1} 1/2-1/2

[Event "87th Tata Steel Masters 2025"]
[White "Praggnanandhaa,Rameshbabu"]
[Black "Sarana,Alexey"]
[Site "Wijk aan Zee"]
[Round "12.3"]
[Annotator "TA"]
[Result "1-0"]
[Date "2025.02.01"]
[WhiteElo "2741"]
[BlackElo "2677"]
[PlyCount "57"]
[TimeControl "60"]

{[%evp 11,57,13,19,21,16,14,12,17,21,19,39,11,21,18,10,27,72,64,71,67,89,82,72,56,114,53,66,52,62,53,58,53,407,412,412,416,810,822,818,814,1177,1104,29979,29977,29977,29978,29997,-354]} 1. d4 {[%emt 0:1:1]} Nf6 {[%emt 0:0:5]} 2. c4 {[%emt 0:0:26]} e6 {[%emt 0:0:4]} 3. Nc3 {[%emt 0:0:5]} d5 {[%emt 0:0:10]} 4. cxd5 {[%emt 0:0:5]} exd5 {[%emt 0:0:3]} 5. Bg5 {[%emt 0:0:6]} c6 {[%emt 0:0:5]} 6. Qc2 {[%emt 0:0:6]} Be6 {[%emt 0:0:24] 6...h6 is the modern continuation.} 7. e3 {[%emt 0:0:39] D36: Queen's Gambit Declined: Exchange Variation: Main line (5 Bg5 c6 6 Qc2).} Nbd7 {[%emt 0:0:5]} 8. Be2 $5 {[%emt 0:6:34][%mdl 4] A promising side line.} Bd6 {[%emt 0:7:12]} 9. Bd3 {[%emt 0:2:12] The position is equal.} h6 {[%emt 0:11:19]} 10. Bh4 {[%emt 0:9:54]} g5 $146 {[%emt 0:3:47]} (10... Rc8 11. Nge2 O-O 12. h3 b5 13. Bg3 Bxg3 14. Nxg3 b4 15. Na4 Qa5 16. O-O c5 17. Nxc5 Nxc5 18. dxc5 Rxc5 {1-0 Van Foreest,J (2695)-L'Ami,E (2645) NED-ch KO Utrecht 2023 (3.5)} )11. Bg3 {[%emt 0:0:7]} Bxg3 {[%emt 0:0:14]} 12. hxg3 {[%emt 0:3:25]} Qe7 {[%emt 0:0:11]} 13. Nf3 {[%emt 0:8:37]} g4 {[%emt 0:8:30]} 14. Nh4 {[%emt 0:11:3]} Nb6 {[%emt 0:3:22]} 15. O-O {[%emt 0:3:48]} O-O-O {[%emt 0:13:1]} 16. a4 {[%emt 0:7:21][%cal Ya2a4,Ya4a5][%mdl 32]} Kb8 {[%emt 0:1:23]} 17. a5 {[%emt 0:2:32]} Nc4 {[%emt 0:0:15]} (17... Nc8 $14 )18. Na4 {[%emt 0:7:4]} (18. a6 $16 )Nd6 $14 {[%emt 0:2:30]} 19. Nc5 {[%emt 0:5:10]} (19. Qb3 {with more complications.} Nfe4 20. Rfc1 Rc8 21. Rc2 )a6 {[%emt 0:4:6]} 20. Rfc1 {[%emt 0:4:55][%csl Yc5][%cal Yd3a6] Bxa6! is the strong threat. Strong Square White (c5) White is much more active.} Bc8 {[%emt 0:5:22]} 21. Qb3 {[%emt 0:0:50]} Nb5 $2 {[%emt 0:4:7][%mdl 8192] [#] This costs Black the game.} ({Better is} 21... Ka8 $14 )22. Nxa6+ $1 $18 {[%emt 0:7:33][%mdl 512]} bxa6 {[%emt 0:0:38]} 23. Rxc6 {[%emt 0:0:5]} Rd7 {[%emt 0:8:1]} (23... Ne8 $142 24. Bxb5 axb5 25. Qxb5+ Ka8 )24. Nf5 {[%emt 0:7:43]} Qd8 {[%emt 0:0:5]} 25. Bxb5 {[%emt 0:0:30]} axb5 {[%emt 0:0:3]} 26. a6 {[%emt 0:1:17]} (26. Qxb5+ Rb7 27. Rb6 Qc7 $17 (27... Rxb6 $2 28. axb6 Qd7 29. Qa5 $18 ))Ra7 {[%emt 0:1:32]} 27. Qxb5+ {[%emt 0:0:47] White mates.} Ka8 {[%emt 0:0:3]} 28. Nd6 {[%emt 0:0:7]} Bd7 {[%emt 0:0:3] [#]} 29. Qb7+ $3 {[%emt 0:0:4][%mdl 33280] Weighted Error Value: White=0.06 (flawless) /Black=1.09 Loss on time!?  Loses game:     	---       	Black=1      Mistake:       	White=1     	Black=2      Inaccurate:     	---       	Black=1      OK:         	White=8     	Black=9      Brilliant:      	White=1     	---} 1-0